bitfinex-derivatives/quotes_SOLF0:USTF0_20250309
["timestamp","ask_amount","ask_price","bid_price","bid_amount"]
[1741539609266,118.22501912,128.09,128.06,32.596412]
[1741539609462,118.22501912,128.09,128.05,0.05952852]
[1741539609665,0.05383621,128.09,128.05,0.05952852]
[1741539610059,7.8096,128.07,128.05,0.05952852]
[1741539610364,0.05383621,128.09,128.05,0.05952852]
[1741539610760,7.8102,128.06,128.05,0.05952852]
[1741539611068,32.596412,128.06,127.99,257.96]
[1741539611366,32.596412,128.04,127.99,257.96]
[1741539611866,7.8139,128.0,127.99,257.96]
[1741539612059,42.6,128.03,127.94,42.6]
[1741539612261,0.05750295,128.01,127.98,0.05385062]
[1741539613562,244.96584917,128.0,127.87,257.86]
[1741539613763,52.96584917,127.97,127.87,257.86]
[1741539613958,4.1524,127.96,127.87,257.86]
[1741539614366,42.6,127.99,127.88,52.96584917]
[1741539614560,0.04974041,127.95,127.92,0.05788948]
[1741539614759,0.04974041,127.95,127.92,50.47608948]
[1741539615068,0.04974041,127.95,127.92,95.62141497]
[1741539615870,4.1524,128.02,127.95,7.8167]
[1741539616064,4.1524,128.02,127.94,257.86]
[1741539616860,4.1524,128.02,127.92,353.42584917]
[1741539617061,0.05346412,127.99,127.97,0.05353233]
[1741539619571,0.05346412,127.99,127.92,300.46]
[1741539619769,52.96584917,127.98,127.92,257.88]
[1741539619969,4.1171,127.97,127.92,257.88]
[1741539620266,7.8169,127.95,127.92,257.88]
[1741539620572,4.1171,127.97,127.92,257.88]
[1741539620767,0.0529967,127.95,127.92,257.93410965]
[1741539621272,0.0529967,127.95,127.92,300.51410965]
[1741539621973,0.0529967,127.95,127.92,353.47995882]
[1741539622271,57.11824917,128.02,127.93,4.1897]
[1741539622468,52.96584917,128.0,127.92,300.46]
[1741539622665,42.58,127.99,127.92,257.88]
[1741539622860,7.8161,127.97,127.92,257.88]
[1741539623066,52.96584917,127.96,127.86,310.86584917]
[1741539623271,4.2297,127.95,127.86,353.44584917]
[1741539623468,0.05905049,127.92,127.9,7.86985091]
[1741539623768,42.58,127.99,127.9,7.86985091]
[1741539623769,42.58,127.99,127.9,0.05035091]
[1741539623969,4.2297,128.0,127.92,52.96584917]
[1741539624464,4.2297,128.0,127.95,7.8166]
[1741539624771,4.2297,128.0,127.92,52.96584917]
[1741539624971,0.0578965,127.99,127.96,0.05271525]
[1741539626667,0.0578965,127.99,127.97,7.8153]
[1741539627075,0.0578965,127.99,127.96,0.05271525]
[1741539627471,0.0578965,127.99,127.96,53.01856442]
[1741539627667,8.2495,128.06,128.01,7.8128]
[1741539627867,8.2495,128.06,127.99,42.58]
[1741539628263,8.2495,128.06,128.01,7.8129]
[1741539628569,32.46473181,128.07,128.0,52.96584917]
[1741539628762,0.05476402,128.05,128.04,7.8114]
[1741539628967,0.05476402,128.05,128.02,0.05581759]
[1741539630069,0.05476402,128.05,128.03,7.812]
[1741539630374,0.05476402,128.05,128.02,0.05581759]
[1741539630574,0.05476402,128.05,128.04,7.8114]
[1741539631175,0.05476402,128.05,128.02,0.05581759]
[1741539632177,0.05476402,128.05,128.04,7.8114]
[1741539632374,3.9698,128.1,128.03,42.56]
[1741539632874,11.778,128.1,128.05,7.8104]
[1741539633073,11.778,128.1,128.03,42.56]
[1741539633469,0.05252969,128.08,128.05,0.05162939]
[1741539634171,52.96584917,128.07,128.02,257.84]
[1741539634479,52.96584917,128.07,127.99,7.8143]
[1741539634674,287.50584917,128.09,127.97,99.42744917]
[1741539634971,52.96584917,128.05,127.98,7.8149]
[1741539635173,8.129,128.04,127.96,257.82]
[1741539635479,53.02158652,128.03,127.96,257.82]
[1741539635676,52.96584917,128.01,127.96,257.82]
[1741539635880,52.96584917,127.99,127.9,300.36]
[1741539636077,42.54,128.0,127.95,7.8169]
[1741539636281,95.50584917,128.03,127.91,52.96584917]
[1741539636578,42.54,128.03,127.95,52.96584917]
[1741539636775,52.96584917,128.05,127.95,52.96584917]
[1741539636776,8.69e-05,127.98,127.97,52.96584917]
[1741539636981,4.2165,128.08,128.05,7.8107]
[1741539637179,4.2165,128.08,128.0,42.54]
[1741539637384,4.2165,128.08,128.01,52.96584917]
[1741539637678,42.54,128.12,128.01,52.96584917]
[1741539637880,4.2165,128.11,128.01,52.96584917]
[1741539638182,0.05839353,128.08,128.06,7.8098]
[1741539638575,0.05839353,128.08,128.05,0.05658056]
[1741539639075,118.28341265,128.08,128.05,0.05658056]
[1741539639276,118.28341265,128.08,128.07,7.8096]
[1741539639983,118.28341265,128.08,128.05,7.86718056]
[1741539640178,118.28341265,128.08,128.05,0.05658056]
[1741539640576,0.05839353,128.08,128.05,0.05658056]
[1741539641880,0.05839353,128.08,128.05,300.35658056]
[1741539642093,0.05839353,128.08,128.07,7.8096]
[1741539642493,42.52,128.15,128.05,300.35658056]
[1741539642683,42.52,128.15,128.05,300.3]
[1741539642995,52.96584917,128.13,128.05,300.3]
[1741539643292,52.96584917,128.13,128.05,257.78]
[1741539643689,0.05786978,128.1,128.08,0.05466711]
[1741539644591,7.8084,128.09,128.08,0.05466711]
[1741539645085,0.05786978,128.1,128.08,0.05466711]
[1741539646794,0.05786978,128.1,128.08,7.86326711]
[1741539647195,0.05786978,128.1,128.08,0.05466711]
[1741539647895,7.86596978,128.1,128.08,0.05466711]
[1741539648092,0.05786978,128.1,128.08,0.05466711]
[1741539649493,7.86576978,128.1,128.08,0.05466711]
[1741539649799,0.05786978,128.1,128.08,0.05466711]
[1741539651301,12.0216,128.16,128.08,0.05466711]
[1741539651601,7.8069,128.12,128.08,7.8085]
[1741539651800,12.0216,128.16,128.07,42.48]
[1741539652188,52.96584917,128.13,128.05,257.78]
[1741539652394,52.96584917,128.11,128.1,5.438e-05]
[1741539652698,60.77294917,128.11,128.1,5.438e-05]
[1741539652897,64.67294917,128.11,128.1,5.438e-05]
[1741539654198,60.77294917,128.11,128.1,5.438e-05]
[1741539654896,7.8071,128.11,128.1,5.438e-05]
[1741539656301,0.05038111,128.12,128.1,5.438e-05]
[1741539656302,7.85728111,128.12,128.1,5.438e-05]
[1741539656496,0.05038111,128.12,128.1,5.438e-05]
[1741539657298,0.05038111,128.12,128.1,7.80735438]
[1741539658293,0.05038111,128.12,128.1,5.438e-05]
[1741539659603,7.8071,128.11,128.1,5.438e-05]
[1741539661107,0.05038111,128.12,128.1,5.438e-05]
[1741539661402,0.05038111,128.12,128.11,7.8071]
[1741539661604,242.8351,128.2,128.11,52.96584917]
[1741539661804,54.862,128.2,128.12,7.806]
[1741539662197,54.862,128.2,128.11,99.67754917]
[1741539662399,52.96584917,128.19,128.08,44.2844]
[1741539662594,0.05396432,128.15,128.12,0.05962301]
[1741539662798,7.806,128.13,128.12,0.05962301]
[1741539663198,7.8055,128.14,128.12,0.05962301]
[1741539663401,0.05396432,128.15,128.12,0.05962301]
[1741539663601,0.05396432,128.15,128.08,42.44]
[1741539664594,0.05396432,128.15,128.1,0.05430144]
[1741539664794,7.806,128.13,128.1,0.05430144]
[1741539665404,0.05396432,128.15,128.1,0.05430144]
[1741539666006,0.05396432,128.15,128.1,58.98555061]
[1741539666301,0.05396432,128.15,128.12,52.96584917]
[1741539666506,4.0269,128.2,128.12,95.38584917]
[1741539666806,42.42,128.23,128.14,52.96584917]
[1741539666807,3.9015,128.23,128.14,52.96584917]
[1741539666999,3.9015,128.23,128.15,257.66]
[1741539667000,7.8015,128.21,128.15,257.66]
[1741539667206,3.9015,128.23,128.16,42.42]
[1741539667406,7.803,128.18,128.16,42.42]
[1741539667602,32.31730516,128.2,128.15,257.66]
[1741539667902,0.05995886,128.18,128.16,0.05307189]
[1741539668608,7.8056,128.14,128.09,257.6]
[1741539669005,7.8056,128.14,128.09,265.408]
[1741539669201,7.8073,128.11,128.09,257.6]
[1741539669606,7.8073,128.11,128.09,257.65962747]
[1741539669803,0.05856502,128.11,128.09,257.65962747]
[1741539670804,0.05856502,128.11,128.1,7.8078]
[1741539671108,0.05856502,128.11,128.09,257.65962747]
[1741539671509,7.8078,128.1,128.09,257.65962747]
[1741539671710,7.8078,128.1,128.09,0.05962747]
[1741539671915,4.1864,128.1,128.03,257.62]
[1741539672208,56.93354917,128.09,128.03,257.62]
[1741539673107,0.05692062,128.07,128.05,0.05498812]
[1741539673309,42.45692062,128.07,127.97,389.67535433]
[1741539673511,42.4,128.07,127.97,389.67535433]
[1741539673806,4.1864,128.1,128.03,52.96584917]
[1741539674011,46.3948,128.15,128.05,52.96584917]
[1741539674211,46.3948,128.15,128.05,310.62584917]
[1741539674212,99.36064917,128.15,128.05,310.62584917]
[1741539674410,99.36064917,128.15,128.05,257.66]
[1741539674710,0.0526426,128.11,128.09,0.05571631]
[1741539675108,63.75123826,128.19,128.1,52.96584917]
[1741539675109,14.78018909,128.19,128.1,52.96584917]
[1741539675309,14.78018909,128.19,128.12,7.8064]
[1741539675614,14.78018909,128.19,128.1,52.96584917]
[1741539675810,43.10269425,128.14,128.1,52.96584917]
[1741539676206,0.05635496,128.13,128.11,0.04946585]
[1741539677008,7.8065,128.12,128.11,0.04946585]
[1741539677313,0.05635496,128.13,128.05,257.66]
[1741539677516,42.4,128.12,128.05,257.66]
[1741539677813,56.91264917,128.11,128.05,257.66]
[1741539678006,7.8102,128.06,128.05,257.66]
[1741539678214,42.38,128.08,128.0,42.4]
[1741539678413,0.05519621,128.07,128.04,0.05192451]
[1741539678609,53.02104538,128.07,127.99,257.64]
[1741539678810,0.05519621,128.07,127.99,257.64]
[1741539679110,7.8106,128.06,128.0,7.8134]
[1741539679317,42.38,128.08,127.99,257.64]
[1741539680010,0.05158505,128.05,128.02,0.05430357]
[1741539681010,0.05158505,128.05,127.97,42.38]
[1741539681011,42.38,128.04,127.94,32.31730516]
[1741539681217,52.96584917,128.01,127.94,32.31730516]
[1741539681416,42.38,128.0,127.94,32.31730516]
[1741539682413,0.05427236,127.98,127.96,0.05391957]
[1741539683119,0.05427236,127.98,127.89,0.1586]
[1741539683418,52.96584917,127.99,127.87,259.7365]
[1741539683717,7.8178,127.94,127.87,259.7365]
[1741539683920,95.36584917,127.95,127.87,257.78]
[1741539684218,52.96584917,127.91,127.86,32.31730516]
[1741539684422,52.96584917,127.89,127.86,32.31730516]
[1741539684714,42.4,127.9,127.85,39.76767553]
[1741539684715,7.8224,127.86,127.85,39.76767553]
[1741539684915,50.2224,127.86,127.85,22.96957553]
[1741539685112,54.1424,127.86,127.85,22.96957553]
[1741539685316,7.823,127.85,127.84,101.67381828]
[1741539685512,60.78884917,127.85,127.84,89.2601419]
[1741539685717,56.88584917,127.85,127.82,263.58778677]
[1741539685914,52.96584917,127.85,127.82,263.58778677]
[1741539686109,42.4,127.86,127.82,263.58778677]
[1741539686322,42.4,127.86,127.77,3.9488]
[1741539686611,52.96584917,127.85,127.76,4.1574]
[1741539686816,52.96584917,127.83,127.8,0.04979117]
[1741539687014,42.42,127.82,127.8,0.04979117]
[1741539687315,0.05259715,127.83,127.8,0.04979117]
[1741539687914,95.36584917,127.82,127.8,0.04979117]
[1741539688317,7.8255,127.81,127.75,129.33018659]
[1741539688515,52.96584917,127.78,127.75,129.33018659]
[1741539688815,50.2484,127.77,127.75,129.33018659]
[1741539689112,52.96584917,127.76,127.74,210.87022941]
[1741539689317,52.96584917,127.75,127.73,250.65381266]
[1741539689518,7.8298,127.74,127.73,250.65381266]
[1741539690020,3.92,127.74,127.59,52.96584917]
[1741539690219,52.96584917,127.7,127.63,7.8365]
[1741539690421,42.42,127.69,127.58,11.9759]
[1741539690616,42.42,127.69,127.59,52.96584917]
[1741539690813,0.05911919,127.68,127.5,192.0]
[1741539691012,0.05911919,127.68,127.56,52.96584917]
[1741539691214,42.42,127.69,127.59,52.96584917]
[1741539691518,0.0508302,127.63,127.54,97.96584917]
[1741539691715,0.0508302,127.63,127.57,52.96584917]
[1741539692018,234.42,127.69,127.6,52.96584917]
[1741539692218,0.05011986,127.61,127.6,52.96584917]
[1741539692415,97.728077,127.68,127.6,52.96584917]
[1741539692608,97.728077,127.68,127.63,52.96584917]
[1741539692813,97.728077,127.68,127.64,4.1586]
[1741539693017,0.05031473,127.67,127.64,4.1586]
[1741539693211,97.728077,127.68,127.66,52.96584917]
[1741539693212,84.833077,127.68,127.66,52.96584917]
[1741539693610,192.0,127.78,127.66,315.08584917]
[1741539693820,192.0,127.78,127.71,52.96584917]
[1741539694020,192.0,127.82,127.74,52.96584917]
[1741539694320,192.0,127.87,127.77,52.96584917]
[1741539694613,244.96584917,127.91,127.8,52.96584917]
[1741539694820,192.0,127.91,127.83,52.96584917]
[1741539695211,55.1326,127.93,127.83,52.96584917]
[1741539695416,10.4722354,127.88,127.79,46.92]
[1741539695618,10.4722354,127.88,127.77,52.96584917]
[1741539695920,52.96584917,127.86,127.74,358.10584917]
[1741539696119,52.96584917,127.86,127.81,0.05875196]
[1741539696324,52.96584917,127.84,127.74,258.2]
[1741539696514,4.2146,127.85,127.74,258.2]
[1741539696515,0.0537117,127.81,127.74,258.2]
[1741539696719,47.12,127.8,127.69,52.96584917]
[1741539697119,52.96584917,127.82,127.68,258.24]
[1741539697120,243.3746,127.85,127.75,52.96584917]
[1741539697316,4.2146,127.85,127.76,258.24]
[1741539697512,55.0819,127.87,127.79,0.04962199]
[1741539697816,47.26,127.9,127.81,52.96584917]
[1741539698020,51.5012,127.93,127.84,52.96584917]
[1741539698222,51.5012,127.93,127.83,258.26]
[1741539698414,51.5012,127.93,127.85,60.78874917]
[1741539698623,47.26,127.93,127.85,60.78874917]
[1741539698822,57.17754917,127.95,127.84,3.9198]
[1741539699013,7.88013998,127.9,127.88,0.05503696]
[1741539699212,0.05993998,127.9,127.88,0.05503696]
[1741539699418,47.82,127.91,127.88,0.05503696]
[1741539699619,0.05716461,127.9,127.88,0.05503696]
[1741539701220,48.06,127.89,127.88,0.05503696]
[1741539701525,55.8806,127.89,127.88,0.05503696]
[1741539701825,55.8806,127.89,127.88,3.696e-05]
[1741539702023,104.92584917,127.89,127.76,258.24]
[1741539702220,7.8245,127.83,127.76,258.24]
[1741539702425,52.96584917,127.86,127.76,258.24]
[1741539702925,4.1104,127.87,127.78,52.96584917]
[1741539703122,105.09934917,127.89,127.79,3.8731]
[1741539703325,0.0494162,127.84,127.81,0.04757415]
[1741539703626,48.24,127.9,127.8,52.96584917]
[1741539703821,0.05733431,127.84,127.81,0.04757415]
[1741539704019,0.05733431,127.84,127.8,52.96584917]
[1741539704219,48.24,127.9,127.8,52.96584917]
[1741539704420,0.05731939,127.83,127.81,0.04757415]
[1741539704622,48.24,127.9,127.79,3.8731]
[1741539704925,0.05629356,127.83,127.81,0.04757415]
[1741539705121,48.4,127.85,127.81,7.415e-05]
[1741539705427,53.51063775,127.89,127.78,52.96584917]
[1741539705627,53.51063775,127.89,127.8,52.96584917]
[1741539705829,7.8226,127.86,127.8,60.79184917]
[1741539706023,249.07404917,127.93,127.83,52.96584917]
[1741539706225,4.1082,127.93,127.83,52.96584917]
[1741539706423,4.1082,127.93,127.85,52.96584917]
[1741539706424,7.8195,127.91,127.85,52.96584917]
[1741539706627,4.1082,127.93,127.85,52.96584917]
[1741539706926,4.1082,127.93,127.84,258.24]
[1741539706927,57.07404917,127.93,127.84,258.24]
[1741539707529,0.05044836,127.9,127.87,0.05036703]
[1741539709721,0.05044836,127.9,127.88,69.8211]
[1741539709925,0.05044836,127.9,127.88,62.0]
[1741539710129,7.87074836,127.9,127.87,4.30906703]
[1741539710425,0.05044836,127.9,127.87,0.05036703]
[1741539710631,7.821,127.89,127.87,0.05036703]
[1741539710825,0.05044836,127.9,127.87,0.05036703]
[1741539711232,0.05044836,127.9,127.88,7.8211]
[1741539711631,7.8159,127.97,127.89,52.96584917]
[1741539711824,48.24,127.99,127.9,4.1867]
[1741539712028,48.24,127.99,127.9,262.3867]
[1741539712325,8.2094,128.02,127.92,52.96584917]
[1741539712531,52.96584917,128.04,127.92,52.96584917]
[1741539712733,0.05254216,127.98,127.96,0.05143319]
[1741539713130,170.41648851,128.05,127.94,52.96584917]
[1741539713333,48.2,128.05,127.96,0.05593245]
[1741539713529,0.05787586,128.01,127.96,48.17593245]
[1741539713724,0.05787586,128.01,127.99,7.814]
[1741539713935,0.05787586,128.01,127.97,0.05256932]
[1741539715527,0.05787586,128.01,127.98,258.12]
[1741539716037,57.13814917,128.1,128.0,52.96584917]
[1741539716432,57.13814917,128.1,128.0,311.00584917]
[1741539716937,4.1723,128.1,128.0,311.00584917]
[1741539717136,0.05326988,128.06,128.04,0.05331983]
[1741539719240,7.8108,128.05,128.04,0.05331983]
[1741539720028,13.01888651,128.05,128.04,0.05331983]
[1741539720335,13.01888651,128.05,128.04,1.983e-05]
[1741539720336,113.52473568,128.05,128.04,1.983e-05]
[1741539720734,5.20808651,128.05,128.04,1.983e-05]
[1741539721134,58.17393568,128.05,128.04,1.983e-05]
[1741539721333,5.20808651,128.05,128.04,1.983e-05]
[1741539721537,13.01888651,128.05,128.04,1.983e-05]
[1741539721737,13.02933996,128.05,128.04,1.983e-05]
[1741539722635,7.8157,127.97,127.96,4.0327]
[1741539722831,100.36584917,128.02,127.95,4.2517]
[1741539723036,100.36584917,128.02,127.94,257.96]
[1741539723439,5.21853996,128.01,127.94,257.96]
[1741539723744,7.8176,127.94,127.87,310.90584917]
[1741539723943,47.34,127.97,127.89,46.36743603]
[1741539724140,52.55853996,128.0,127.89,56.93244917]
[1741539724540,5.21853996,127.99,127.91,52.96584917]
[1741539724738,5.21853996,127.99,127.93,7.8179]
[1741539724941,47.24,128.0,127.91,47.26]
[1741539725141,0.05069561,127.97,127.95,0.04851649]
[1741539726139,192.0,128.06,127.95,310.95436566]
[1741539726444,7.8131,128.02,127.96,4.2231]
[1741539726645,100.20584917,128.06,127.96,4.2231]
[1741539726940,5.22796744,128.05,127.96,4.2231]
[1741539727138,5.22796744,128.05,127.96,51.4831]
[1741539727338,0.05191835,128.02,127.99,0.05516606]
[1741539727641,7.86461835,128.02,127.99,0.05516606]
[1741539727943,0.05191835,128.02,127.99,0.05516606]
[1741539731938,0.05191835,128.02,127.99,7.86926606]
[1741539732143,0.05191835,128.02,127.99,0.05516606]
[1741539732340,0.05191835,128.02,127.99,53.02101523]
[1741539732544,4.0767,128.09,127.99,53.02101523]
[1741539732845,4.0767,128.09,127.99,52.96584917]
[1741539733346,52.96584917,128.14,128.01,52.96584917]
[1741539733552,52.96584917,128.14,128.03,52.96584917]
[1741539733853,0.05905911,128.09,128.06,0.05145955]
[1741539734047,5.22890684,128.13,128.11,7.8071]
[1741539734244,5.22890684,128.13,128.06,0.05145955]
[1741539734245,4.0354,128.15,128.07,52.96584917]
[1741539734644,46.9,128.17,128.07,52.96584917]
[1741539734846,52.96584917,128.16,128.06,4.135]
[1741539735042,7.8071,128.12,128.07,7.8094]
[1741539735248,0.05364098,128.12,128.1,0.0529574]
[1741539735752,0.05035225,128.12,128.1,7.86284774]
[1741539735952,0.05035225,128.12,128.1,0.05514774]
[1741539736153,7.803,128.18,128.1,0.05514774]
[1741539736454,7.803,128.18,128.09,52.96584917]
[1741539736648,7.8019,128.2,128.15,7.8046]
[1741539736848,46.68,128.21,128.11,52.96584917]
[1741539737051,5.24879195,128.19,128.11,310.76584917]
[1741539737555,0.05761396,128.16,128.14,0.0602029]
[1741539737944,57.11684917,128.22,128.12,4.2343]
[1741539738252,0.04951998,128.16,128.14,0.05993205]
[1741539738452,57.11684917,128.22,128.12,4.2343]
[1741539738648,0.05031586,128.16,128.14,0.0551783]
[1741539738954,57.11684917,128.22,128.12,4.2343]
[1741539739155,0.05464311,128.16,128.14,0.05979319]
[1741539739555,99.56584917,128.2,128.12,4.2343]
[1741539739756,0.04988438,128.16,128.14,0.05137394]
[1741539740155,99.61573355,128.16,128.05,365.10294917]
[1741539740355,3.8733,128.15,128.05,312.1371]
[1741539740554,52.96584917,128.14,128.05,312.1371]
[1741539741459,0.0514791,128.11,128.08,0.05460653]
[1741539742266,5.25144479,128.13,128.09,52.96584917]
[1741539742463,5.25144479,128.13,128.11,52.96584917]
[1741539742663,58.5957,128.19,128.11,52.96584917]
[1741539742664,50.7933,128.19,128.11,52.96584917]
[1741539742957,50.7933,128.19,128.1,46.9]
[1741539743161,3.8733,128.19,128.1,99.86584917]
[1741539743358,0.05987393,128.16,128.13,0.05455714]
[1741539744060,0.05987393,128.16,128.13,257.75455714]
[1741539744564,0.05987393,128.16,128.13,0.05455714]
[1741539746455,0.05987393,128.16,128.13,116.68025714]
[1741539746954,0.05987393,128.16,128.13,0.05455714]
[1741539747957,55.0668,128.23,128.13,53.02040631]
[1741539748157,52.96584917,128.31,128.16,52.96584917]
[1741539748158,104.45584917,128.27,128.16,52.96584917]
[1741539748463,4.2712,128.26,128.16,100.38584917]
[1741539748762,4.2712,128.26,128.17,4.0821]
[1741539749162,7.7987,128.25,128.19,7.8022]
[1741539749360,0.05123313,128.23,128.2,0.05447778]
[1741539750961,7.8011,128.21,128.2,0.05447778]
[1741539751163,0.05123313,128.23,128.2,0.05447778]
[1741539751359,7.85153313,128.23,128.2,0.05447778]
[1741539751761,0.05123313,128.23,128.2,0.05447778]
[1741539752561,7.85113313,128.23,128.2,0.05447778]
[1741539752865,0.05123313,128.23,128.2,0.05447778]
[1741539754164,7.85163313,128.23,128.2,0.05447778]
[1741539754367,0.05123313,128.23,128.2,0.05447778]
[1741539754857,0.05123313,128.23,128.2,7.85577778]
[1741539755062,0.05123313,128.23,128.2,0.05447778]
[1741539755463,0.05123313,128.23,128.22,7.8004]
[1741539755664,0.05123313,128.23,128.2,0.05447778]
[1741539756367,0.05123313,128.23,128.21,47.54]
[1741539756568,0.05123313,128.23,128.22,7.8004]
[1741539756763,0.05123313,128.23,128.21,47.54]
[1741539757069,0.05123313,128.23,128.2,53.02032695]
[1741539757264,11.8679,128.27,128.22,7.8004]
[1741539757469,4.07,128.27,128.22,7.8004]
[1741539757665,5.23102768,128.26,128.21,3.9525]
[1741539758470,8.106,128.31,128.21,11.7532]
[1741539758774,8.106,128.31,128.21,3.9525]
[1741539758975,7.7989,128.25,128.21,3.9525]
[1741539759268,58.19530232,128.3,128.25,0.05651778]
[1741539759671,0.05936209,128.24,128.18,52.96584917]
[1741539759866,5.22945315,128.29,128.26,0.05067412]
[1741539760072,7.7978,128.27,128.26,0.05067412]
[1741539760269,5.22945315,128.29,128.21,7.8008]
[1741539760473,5.22945315,128.29,128.25,0.04994601]
[1741539760474,5.28883085,128.29,128.25,0.04994601]
[1741539760675,7.798,128.26,128.25,0.04994601]
[1741539761368,5.22945315,128.26,128.25,0.04994601]
[1741539762164,0.0526564,128.28,128.25,0.04994601]
[1741539762868,52.96584917,128.39,128.27,52.96584917]
[1741539763078,50.836,128.38,128.27,52.96584917]
[1741539763266,7.7936,128.34,128.28,7.7965]
[1741539763472,3.996,128.38,128.28,46.78]
[1741539763783,7.7924,128.36,128.3,7.7951]
[1741539764080,0.05566262,128.34,128.32,0.04950444]
[1741539767569,192.0,128.44,128.32,257.40950444]
[1741539767771,58.7744,128.43,128.32,310.37535361]
[1741539767978,58.7744,128.43,128.32,310.32584917]
[1741539768276,52.96584917,128.42,128.32,257.36]
[1741539768678,7.7918,128.37,128.32,257.36]
[1741539768976,52.96584917,128.42,128.36,0.05305265]
[1741539768977,0.05487767,128.38,128.36,0.05305265]
[1741539769177,0.05487767,128.38,128.32,257.36]
[1741539769367,0.05487767,128.38,128.36,0.05354468]
[1741539772173,0.05487767,128.38,128.37,7.7913]
[1741539772382,192.0,128.54,128.37,10.0]
[1741539772574,52.96584917,128.52,128.4,52.96584917]
[1741539772875,52.96584917,128.49,128.4,257.3]
[1741539773073,98.96584917,128.49,128.4,257.3]
[1741539773474,46.0,128.49,128.4,318.05494917]
[1741539773675,0.05072808,128.46,128.43,0.05136131]
[1741539773875,7.7871,128.44,128.43,0.05136131]
[1741539774077,12.253,128.45,128.34,310.22584917]
[1741539774375,12.253,128.45,128.37,7.7911]
[1741539774579,45.98,128.44,128.37,7.7911]
[1741539774774,45.98,128.44,128.34,257.26]
[1741539775078,45.98,128.44,128.34,303.18]
[1741539775276,0.0588666,128.4,128.38,0.05941392]
[1741539778781,7.7901,128.39,128.38,0.05941392]
[1741539779282,0.0588666,128.4,128.38,0.05941392]
[1741539782382,45.2588666,128.4,128.38,0.05941392]
[1741539783184,0.0588666,128.4,128.38,0.05941392]
[1741539783883,7.8486666,128.4,128.38,0.05941392]
[1741539784085,15.56655438,128.5,128.38,0.05941392]
[1741539784384,3.898,128.48,128.4,52.96584917]
[1741539784984,3.898,128.48,128.42,7.7883]
[1741539785279,0.04916925,128.46,128.44,0.05458639]
[1741539786483,7.7865,128.45,128.44,0.05458639]
[1741539787078,3.9,128.45,128.4,257.14]
[1741539787278,97.99501842,128.46,128.4,257.14]
[1741539787479,45.02916925,128.46,128.37,52.96584917]
[1741539787685,7.7865,128.45,128.37,52.96584917]
[1741539788085,44.98,128.46,128.37,52.96584917]
[1741539788284,0.05738204,128.42,128.4,0.05747222]
[1741539790194,7.84588204,128.42,128.4,0.05747222]
[1741539790489,0.05738204,128.42,128.4,0.05747222]
[1741539790685,7.7889,128.41,128.4,0.05747222]
[1741539791089,0.05738204,128.42,128.34,310.10584917]
[1741539791391,4.1932,128.41,128.34,310.10584917]
[1741539791585,7.7893,128.41,128.35,7.792]
[1741539791988,4.136,128.43,128.34,310.10584917]
[1741539792297,0.05534228,128.4,128.37,0.05225526]
[1741539792497,0.05534228,128.4,128.38,52.61934335]
[1741539792698,0.05534228,128.4,128.37,32.42078917]
[1741539793197,7.7861,128.46,128.41,7.7886]
[1741539793597,7.7861,128.46,128.4,32.36853391]
[1741539794095,7.7865,128.45,128.4,32.36853391]
[1741539794297,0.05487493,128.44,128.42,0.05443713]
[1741539794592,48.6349,128.49,128.42,0.05443713]
[1741539794797,0.05464744,128.44,128.42,7.84253713]
[1741539794987,48.6349,128.49,128.42,7.84253713]
[1741539795191,0.05432812,128.44,128.42,7.84253713]
[1741539795392,7.7856,128.47,128.42,7.84253713]
[1741539795695,0.0544317,128.44,128.42,7.84253713]
[1741539796785,0.0544317,128.44,128.42,0.05443713]
[1741539798396,7.8419317,128.44,128.42,0.05443713]
[1741539798900,0.0544317,128.44,128.42,0.05443713]
[1741539800703,7.8417317,128.44,128.42,0.05443713]
[1741539800903,0.0544317,128.44,128.42,0.05443713]
[1741539802000,0.0544317,128.44,128.42,7.84243713]
[1741539802200,0.0544317,128.44,128.42,0.05443713]
[1741539802401,0.0544317,128.44,128.42,7.84243713]
[1741539802601,0.0544317,128.44,128.42,0.05443713]
[1741539804804,7.7877,128.43,128.42,0.05443713]
[1741539805003,0.0544317,128.44,128.42,0.05443713]
[1741539805904,7.8419317,128.44,128.42,0.05443713]
[1741539806508,0.0544317,128.44,128.42,0.05443713]
[1741539806801,7.9575,128.49,128.43,52.57998578]